{"text_format":"3","workbook":"xlsx","n_sheets":5,"sheets":["Instructions","Fully Automated AED","Semi Automated AED","AED Accessories","Value-Add"],"not_rendered":{"images":1,"defined_names":1},"read":"whole","date_system":"1900"}

{"sheet":"Instructions","index":0,"n_rows":15,"n_cols":2,"rows_kept":15,"merged":[[5,0,5,2],[6,0,6,2],[7,1,7,2],[8,1,8,2],[9,1,9,2],[10,1,10,2],[11,1,11,2],[12,1,12,2],[13,1,13,2],[14,1,14,2]]}
["Request for Proposals for"]
["AED Units and Accessories"]
["Issued by the State of Oklahoma"]
["Solicitation Number EV00000354"]
[]
["Attachment H\nCOST  & DELIVERY TIME PROPOSAL INSTRUCTIONS"]
[]
["H.1","Read and review the complete RFP for Automated External Defibrillator (AED) Units and Accessories to identify the categories of requested cost and estimation for AED Units and supplies."]
["H.2","Each category has it's own cost schedule and tab. At the bottom of this Cost Proposal spreadsheet, select the tab for the category(s) for which you are submitting a proposal, ensuring a tab is filled out for every category of response as well as the estimated delivery times of any proposed items. "]
["H.3","Write your company name and price validity period in the appropriate lines of each Category Spreadsheet you are proposing."]
["H.4","Fill in the white boxes with the required information for each category you are proposing, this document will serve as your full-line catalog offering. Offeror must provide a whole number discount (e.g. 10%, not 10.3%) for each item listed. If not bidding, mark \"No Bid\" for that Category. Offeror must provide separate pricing for AED accessories (on the appropriate tab) that are compatible with the AED units being proposed."]
["H.5","All AED catalog offerings are considered for the purpose of this solicitation.  Value-add items/services can be added on the Value-Add tab but will not be scored. Listed value-add items may be considered for addition to the contract to those offeror’s awarded a master agreement."]
["H.6","All discounts offered must include all anticipated charges, including but not limited to, freight and delivery, warehousing, transaction fees, overhead, profits, and NASPO Administrative Fee (0.25%).  The proposed discount as awarded will be the minimum discount; higher discounts may be negotiated between the ordering Participating Entity and the Contractor, but the discount may not ever drop below the discount offered in this proposal."]
["H.7","Completed Cost Proposals must be included in your proposal, sealed separately and labeled per instruction in the RFP Summary section III.3. Failure to include a completed Cost Schedule with your submittal will cause your submittal to be deemed non-responsive."]
["H.8","The Value-Add tab of this Cost Schedule Spreadsheet is for entering any value-add discount off of normal rates for services your company may wish to include in its Master Agreement if awarded.  These optional services you list under the Value-Add category will not be evaluated in the cost equation for scoring in this solicitation, but they will be made part of the Master Agreement(s) resulting from this solicitation as value-add service options.  If your company does not wish to provide one or more of the services listed in this Category, leave those lines blank.  If there are any additional service options you would include that aren't listed, write them in the blank lines provided along with the discount to be applied to that service.  Value-added services not listed on this submittal form will not be allowed under this Master Agreement without prior written approval from the Lead State Procurement Officer."]

{"sheet":"Fully Automated AED","index":1,"n_rows":28,"n_cols":7,"rows_kept":28,"merged":[[6,0,6,6],[7,1,7,6],[8,0,8,6]]}
["Request for Proposals for"]
["AED Units and Accessories"]
["Issued by the State of Oklahoma"]
["Solicitation Number EV00000354"]
[]
[]
["Offeror Name: Avive Solutions"]
["Validity Period:","08.01.2025 - 2.28.2026"]
["Category I: AED Units - Fully Automated "]
["Item Number","Product Description","UOM","QTY per UOM","List Price","% Discount","Net Price"]
["AED01","One Avive AED with Avive Connect Installed. Includes one single-use Avive AED Pad Cartridge, one medical-grade USB Power Adapter, and one USB Charging Cable. Includes one year of access to Avive’s REALConnect Services.","EA",1,{"v":2235.2823529411767,"d":"$2,235.28"},{"$f":"(E11-G11)/E11","v":{"v":0.2000026315927979,"d":"20%"}},{"v":1788.22,"d":"$1,788.22"}]
["AEDU01","One Avive AED with Avive Connect Installed, Assembled in the USA. Includes one single-use Avive AED Pad Cartridge, one medical-grade USB Power Adapter, and one USB Charging Cable. Includes one year of access to Avive's REALConnect Services.","EA",1,{"v":3920,"d":"$3,920.00"},{"$f":"(E12-G12)/E12","v":{"v":0.2,"d":"20%"}},{"v":3136,"d":"$3,136.00"}]
{"$rows_empty":13}
["[Add additional rows as needed.]"]
[]
["Estimated Delivery Time:","1-2 weeks for order < 100 AED units. 3-4 weeks for orders of 100+ AEDs"]

{"sheet":"Semi Automated AED","index":2,"n_rows":26,"n_cols":7,"rows_kept":26,"merged":[[6,0,6,6],[7,1,7,6],[8,0,8,6]]}
["Request for Proposals for"]
["AED Units and Accessories"]
["Issued by the State of Oklahoma"]
["Solicitation Number EV00000354"]
[]
[]
["Offeror Name:Avive Solutions"]
["Validity Period:"]
["Category II: AED Units - Semi Automated "]
["Item Number","Product Description","UOM","QTY per UOM","List Price","% Discount","Net Price"]
[null,"AED only comes in fully-automatic version; semi-automatic section intentionally left blank",{"$nulls":4},{"$f":"E11-(E11*F11)","v":0}]
{"$rows_empty":14}
["[Add additional rows as needed.]"]

{"sheet":"AED Accessories","index":3,"n_rows":36,"n_cols":7,"rows_kept":36,"merged":[[6,0,6,6],[7,1,7,6],[8,0,8,6]]}
["Request for Proposals for"]
["AED Units and Accessories"]
["Issued by the State of Oklahoma"]
["Solicitation Number EV00000354"]
[]
[]
["Offeror Name:Avive Solutions"]
["Validity Period:","08.01.2025 - 2.28.2026"]
["AED Accessories"]
["Item Number","Product Description","UOM","QTY per UOM","List Price","% Discount","Net Price"]
["ACC01","One single-use Avive AED Pad Cartridge. Each cartridge contains two adhesive universal electrode pads.","EA",1,{"v":117.63529411764705,"d":"$117.64"},{"$f":"(E11-G11)/E11","v":{"v":0.19999999999999993,"d":"20%"}},{"$f":"E11*0.8","v":{"v":94.10823529411765,"d":"$94.11"}}]
["ACC02","One compact, high-quality CPR/AED rescue kit containing: (1) 1-way face shield, (1) pair of nitrile gloves, (1) set of emergency shears, (1) medical prep razor, (1) absorbent dry towel, (1) antiseptic towelette, and (1) biohazard bag.","EA",1,{"v":29.4,"d":"$29.40"},{"$f":"(E12-G12)/E12","v":{"v":0.19999999999999998,"d":"20%"}},{"v":23.52,"d":"$23.52"}]
["ACC09","One compact Semi-Rigid AED Carrying Case measuring 8.9\" x 7.5\" x 4.5\".","EA",1,{"v":117.63529411764705,"d":"$117.64"},{"v":0.19998499849984994,"d":"20%"},{"v":94.11,"d":"$94.11"}]
["ACC11","One Hard AED Carrying Case measuring 12.5\" x 10.1\" x 6.0\".","EA",1,{"v":230.5764705882353,"d":"$230.58"},{"v":0.20000510230113783,"d":"20%"},{"v":184.46,"d":"$184.46"}]
["ACC20","Slimmer fit carry case holding the Avive Connect AED and either a Rescue Kit or spare Pad Cartridge measuring 7\" x 7\" x 3.25\". ","EA",1,{"v":70.5764705882353,"d":"$70.58"},{"v":0.20001666944490748,"d":"20%"},{"v":56.46,"d":"$56.46"}]
["ACC03","One Avive Charge Stand, one 2-meter Avive USB Charging Cable, and one medical-grade Avive USB Power Adapter. Wall screws and wall anchors included.","EA",1,{"v":117.63529411764705,"d":"$117.64"},{"v":0.19998499849984994,"d":"20%"},{"v":94.11,"d":"$94.11"}]
["ACC13","One wall cabinet to securely store your AED measuring 11.6\" x 13.1\" x 5.8\".","EA",1,{"v":164.69411764705885,"d":"$164.69"},{"v":0.20003214515322534,"d":"20%"},{"v":131.75,"d":"$131.75"}]
["PKG07","One wall cabinet to securely store your AED measuring 11.6\" x 13.1\" x 5.8\". One compact Semi-Rigid AED Carrying Case measuring 8.9\" x 7.5\" x 4.5\".","EA",1,{"v":235.2823529411765,"d":"$235.28"},{"v":0.2000250012500626,"d":"20%"},{"v":188.22,"d":"$188.22"}]
["PKG08","One wall cabinet to securely store your AED measuring 11.6\" x 13.1\" x 5.8\". Also includes one Avive Charge Stand to mount in the Wall Cabinet.","EA",1,{"v":208.22352941176473,"d":"$208.22"},{"v":0.19999434996327478,"d":"20%"},{"v":166.58,"d":"$166.58"}]
["ACC04","One vinyl, multi-configurable wall sign measuring 14.75\" x 9\" with pre-drilled holes (screws not included).","EA",1,{"v":17.63529411764706,"d":"$17.64"},{"v":0.19989993328885933,"d":"20%"},{"v":14.11,"d":"$14.11"}]
["ACC06","One AED Decal that can be placed on outer doors or windows to help drive awareness that your facility is equipped with an AED inside.","EA",1,{"v":2.2941176470588234,"d":"$2.29"},{"v":0.20230769230769222,"d":"20%"},{"v":1.83,"d":"$1.83"}]
["ACC08","One Avive AED Training Cartridge. FOR TRAINING PURPOSES ONLY. Each Cartridge contains two pads that can be used for training purposes.","EA",1,{"v":88.2235294117647,"d":"$88.22"},{"v":0.1999866648886518,"d":"20%"},{"v":70.58,"d":"$70.58"}]
["ACC12","One pack of five sets of training pad replacements for the Avive AED Training Cartridge. Does NOT include the Avive AED Training Cartridge.","EA",1,{"v":82.34117647058824,"d":"$82.34"},{"v":0.20003571938848402,"d":"20%"},{"v":65.87,"d":"$65.87"}]
["ACC05","One medical-grade Avive USB Power Adapter. Compatible with the Avive USB Charging Cable (not included).","EA",1,{"v":29.4,"d":"$29.40"},{"v":0.19999999999999998,"d":"20%"},{"v":23.52,"d":"$23.52"}]
["ACC07","One 1-meter Avive USB Charging Cable. Compatible with the Avive USB Power Adapter (not included).","EA",1,{"v":11.75294117647059,"d":"$11.75"},{"v":0.20020020020020024,"d":"20%"},{"v":9.4,"d":"$9.40"}]
["PKG02","Contains one medical-grade Avive USB Power Adapter and one 1-meter Avive USB Charging Cable to charge your AED.","EA",1,{"v":35.28235294117647,"d":"$35.28"},{"v":0.2001667222407469,"d":"20%"},{"v":28.22,"d":"$28.22"}]
["MS-00946","USB Cable, 2 Meter Power Cord","EA",1,{"v":5.882352941176471,"d":"$5.88"},{"v":0.19930000000000006,"d":"20%"},{"v":4.71,"d":"$4.71"}]
["ACC17 ","Rechargeable pack designed to be plugged in to an Avive Connect AED to charge its battery to full.","EA",1,{"v":35.28235294117647,"d":"$35.28"},{"v":0.2001667222407469,"d":"20%"},{"v":28.22,"d":"$28.22"}]
["ACC16","Rechargeable Avive Portable Power Bank compatible with the Avive Connect AED. Measures 7.41\" x 5.46\" x 1.95\".","EA",1,{"v":235.2823529411765,"d":"$235.28"},{"v":0.2000250012500626,"d":"20%"},{"v":188.22,"d":"$188.22"}]
["ACC19","One (1) Avive Power Case for storage and charging of the Avive Connect AED. Measuring 9.5\" x 8.5\" x 5\".","EA",1,{"v":294.1058823529412,"d":"$294.11"},{"v":0.19998199927997126,"d":"20%"},{"v":235.29,"d":"$235.29"}]
["ACC15","Bleed control kit includes touniquet, chest seal twin-pack, 6\" emergency trauma dressing, two wound packing gauze, trauma shear, 2 pair nitrile responder gloves, survival blanket, marker, and instruction card.","EA",1,{"v":82.34117647058824,"d":"$82.34"},{"v":0.20003571938848402,"d":"20%"},{"v":65.87,"d":"$65.87"}]
["ACC21","Avive Opioid Overdose Prevention Kit 2-Pack","EA",1,{"v":66.17647058823529,"d":"$66.18"},{"v":0.20001777777777777,"d":"20%"},{"v":52.94,"d":"$52.94"}]
["ACC22","Avive Opioid Overdose Prevention Kit 3-Pack","EA",1,{"v":89.70588235294117,"d":"$89.71"},{"v":0.1999409836065574,"d":"20%"},{"v":71.77,"d":"$71.77"}]
["[Add additional rows as needed.]"]
[]
["Estimated Delivery Time:","1-2 weeks for order < 100 units. 3-4 weeks for orders of 100+ units"]

{"sheet":"Value-Add","index":4,"n_rows":74,"n_cols":7,"rows_kept":74,"merged":[[6,0,6,6],[7,1,7,6],[8,0,8,6],[9,0,9,6],[47,0,61,0],[47,1,61,1],[47,2,61,5],[47,6,61,6],[62,0,67,0],[62,1,67,1],[62,2,67,2],[62,3,67,3],[62,4,67,4],[62,5,67,6]]}
["Request for Proposals for"]
["AED Units and Accessories"]
["Issued by the State of Oklahoma"]
["Solicitation Number EV00000354"]
[]
[]
["Offeror Name: Avive Solutions"]
["Validity Period:","08.01.2025 - 2.28.2026"]
["Value-Add"]
["Value-Add: Examples include battery replacement plans, unconventional training options, alternative maintenance plans, and other services not specified."]
["Item Number or Service","Product/Service Description","UOM","QTY per UOM","List Price","% Discount","Net Price"]
["PKG01","One Avive AED with Avive Connect Installed. Includes one Pad Cartridge, one CPR/AED Rescue Kit, one Semi-Rigid AED Carrying Case, one Training Cartridge, and one USB Power Adapter and Cable. Includes one year of access to Avive's REALConnect Services.","EA",1,{"v":2317.635294117647,"d":"$2,317.64"},{"$f":"(E12-G12)/E12","v":{"v":0.2,"d":"20%"}},{"v":1854.1082352941175,"d":"$1,854.11"}]
["PKG03","One Avive AED with Avive Connect Installed. Includes one Pad Cartridge installed, spare Pad Cartridge, CPR/AED Rescue Kit, Charge Stand, Flexible AED Wall Sign, Power Adapter, and Cable. Includes one year of access to Avive's REALConnect Services.","EA",1,{"v":2364.694117647059,"d":"$2,364.69"},{"$f":"(E13-G13)/E13","v":{"v":0.2,"d":"20%"}},{"v":1891.7552941176473,"d":"$1,891.76"}]
["PKG04","One Avive AED with Avive Connect Installed. Includes one Pad Cartridge installed, spare Pad Cartridge, CPR/AED Rescue Kit, Semi-Rigid AED Carrying Case, Wall Cabinet, and Flexible AED Wall Sign. Includes one year of access to Avive's REALConnect Services.","EA",1,{"v":2517.635294117647,"d":"$2,517.64"},{"v":0.2,"d":"20%"},{"v":2014.1082352941175,"d":"$2,014.11"}]
["PKG05","One Avive AED with Avive Connect Installed. Includes one Pad Cartridge installed, one spare Pad Cartridge, one CPR/AED Rescue Kit, one Hard AED Carrying Case, and one Power Adapter and Cable. Includes one year of access to Avive's REALConnect Services.","EA",1,{"v":2447.0470588235294,"d":"$2,447.05"},{"v":0.19999999999999996,"d":"20%"},{"v":1957.6376470588236,"d":"$1,957.64"}]
["PKG06","One Avive AED with Avive Connect Installed. Includes one Pad Cartridge installed, spare Pad Cartridge, CPR/AED Rescue Kit, Charge Stand, Wall Cabinet, and Flexible AED Wall Sign. Includes one year of access to Avive's REALConnect Services.","EA",1,{"v":2490.576470588235,"d":"$2,490.58"},{"v":0.19999999999999996,"d":"20%"},{"v":1992.4611764705883,"d":"$1,992.46"}]
["SHPKG01","One Avive AED with Avive Connect Installed. Includes spare Pad Cartridge, CPR/AED Rescue Kit, Semi-Rigid Carrying Case, Wall Cabinet & Sign, STOP THE BLEED Kit. Includes access to ARC CPR/AED training program and one year of Avive’s REALConnect Services.","EA",1,{"v":2567.0588235294117,"d":"$2,567.06"},{"v":0.20000000000000004,"d":"20%"},{"v":2053.6470588235293,"d":"$2,053.65"}]
["SHPKG02","One Avive AED with Avive Connect Installed. Includes spare Pad Cartridge, CPR/AED Rescue Kit, Hard AED Carrying Case, one STOP THE BLEED Kit, and access to the American Red Cross CPR/AED training program at Avive-negotiated pricing. Includes one year of access to Avive's REALConnect Services.","EA",1,{"v":2487.0588235294117,"d":"$2,487.06"},{"v":0.19999999999999996,"d":"20%"},{"v":1989.6470588235295,"d":"$1,989.65"}]
["AEDU01B","One Avive AED (USA Made) with Avive Connect Installed. Includes one single-use Pad Cartridge, Avive Stop the Bleed Kit, medical-grade USB Power Adapter, and USB Charging Cable. Includes one year of access to Avive's REALConnect Services.","EA",1,{"v":3045.8823529411766,"d":"$3,045.88"},{"v":0.19999864812668985,"d":"20%"},{"v":2436.71,"d":"$2,436.71"}]
["AED01N","One Avive AED with Avive Connect Installed. Includes one single-use Pad Cartridge,  Avive Opioid Overdose Prevention Kit 2-Pack, medical-grade USB Power Adapter, and USB Charging Cable. Includes one year of access to Avive's REALConnect Services.","EA",1,{"v":2300.294117647059,"d":"$2,300.29"},{"v":0.20000230149597245,"d":"20%"},{"v":1840.23,"d":"$1,840.23"}]
["AED01NN","One Avive AED with Avive Connect Installed. Includes one single-use Pad Cartridge, Avive Opioid Overdose Prevention Kit 3-Pack, medical-grade USB Power Adapter, and USB Charging Cable. Includes one year of access to Avive's REALConnect Services.","EA",1,{"v":2322.6470588235293,"d":"$2,322.65"},{"v":0.1999989869570723,"d":"20%"},{"v":1858.12,"d":"$1,858.12"}]
["AEDU01N","One Avive AED (USA Made) with Avive Connect Installed. Includes one single-use Pad Cartridge, Avive Opioid Overdose Prevention Kit 2-Pack, medical-grade USB Power Adapter, and USB Charging Cable. Includes one year of access to Avive's REALConnect Services.","EA",1,{"v":3986.18,"d":"$3,986.18"},{"v":0.20000100346697836,"d":"20%"},{"v":3188.94,"d":"$3,188.94"}]
["AEDU01NN","One Avive AED (USA Made) with Avive Connect Installed. Includes one single-use Pad Cartridge, Avive Opioid Overdose Prevention Kit 3-Pack, medical-grade USB Power Adapter, and USB Charging Cable. Includes one year of access to Avive's REALConnect Services.","EA",1,{"v":4074.71,"d":"$4,074.71"},{"v":0.1999995091675236,"d":"20%"},{"v":3259.77,"d":"$3,259.77"}]
["AED05","One Avive AED with Avive Connect Installed. Includes one single-use Pad Cartridge, CPR/AED Rescue Kit, Semi-Rigid AED Carrying Case, medical-grade USB Power Adapter, and USB Charging Cable. Includes five years of access to Avive's REALConnect Services.","EA",1,{"v":3029.4117647058824,"d":"$3,029.41"},{"$f":"(E24-G24)/E24","v":{"v":0.15000000000000002,"d":"15%"}},{"v":2575,"d":"$2,575.00"}]
["AED05C","One Avive AED with Avive Connect Installed. Includes one single-use Pad Cartridge, CPR/AED Rescue Kit, Avive Charge Stand, medical-grade USB Power Adapter, and USB Charging Cable. Includes five years of access to Avive's REALConnect Services.","EA",1,{"v":3029.4117647058824,"d":"$3,029.41"},{"$f":"(E25-G25)/E25","v":{"v":0.15000000000000002,"d":"15%"}},{"v":2575,"d":"$2,575.00"}]
["AED08","One Avive AED with Avive Connect Installed. Includes one single-use Pad Cartridge, CPR/AED Rescue Kit, Semi-Rigid AED Carrying Case, medical-grade USB Power Adapter, and USB Charging Cable. Includes eight years of access to Avive's REALConnect Services.","EA",1,{"v":3461.1764705882356,"d":"$3,461.18"},{"v":0.15000000000000008,"d":"15%"},{"v":2942,"d":"$2,942.00"}]
["AED08C","One Avive AED with Avive Connect Installed. Includes one single-use Pad Cartridge, CPR/AED Rescue Kit, Avive Charge Stand, medical-grade USB Power Adapter, and USB Charging Cable. Includes eight years of access to Avive's REALConnect Services.","EA",1,{"v":3461.1764705882356,"d":"$3,461.18"},{"v":0.15000000000000008,"d":"15%"},{"v":2942,"d":"$2,942.00"}]
["SAS01","One year of access to Avive's REALConnect platform. Includes daily AED monitoring and notifications, 911 integration, Incident Data Access, Reporting and AED location tracking, FREE Pad Cartridge replacements, and more.","EA",1,{"v":234.12,"d":"$234.12"},{"v":0.1500085426277123,"d":"15%"},{"v":199,"d":"$199.00"}]
["SAS02","Two years of access to Avive's REALConnect platform. Includes daily AED monitoring and notifications, 911 integration, Incident Data Access, Reporting, FREE Pad Cartridge replacements, and more. 2-year non-cancelable service, billed annually. For the sake of clarity, the purchase of multiple years of REALConnect is a non-cancellable service where the customer will be invoiced the annual sales price per device plus applicable tax annually for the term specified.","Annually",1,{"v":234.12,"d":"$234.12"},{"v":0.1500085426277123,"d":"15%"},{"v":199,"d":"$199.00"}]
["SAS02P","Two years of access to Avive's REALConnect platform. Includes daily AED monitoring and notifications, 911 integration, Incident Data Access, Reporting, FREE Pad Cartridge replacements, and more.","EA",1,{"v":444.71,"d":"$444.71"},{"v":0.1500078702974972,"d":"15%"},{"v":378,"d":"$378.00"}]
["SAS03","Three years of access to Avive's REALConnect platform. Includes daily AED monitoring and notifications, 911 integration, Incident Data Access, Reporting, FREE Pad Cartridge replacements, and more. 3-year non-cancelable service, billed annually. For the sake of clarity, the purchase of multiple years of REALConnect is a non-cancellable service where the customer will be invoiced the annual sales price per device plus applicable tax annually for the term specified.","Annually",1,{"v":234.12,"d":"$234.12"},{"v":0.1500085426277123,"d":"15%"},{"v":199,"d":"$199.00"}]
["SAS03P","Three years of access to Avive's REALConnect platform. Includes daily AED monitoring and notifications, 911 integration, Incident Data Access, Reporting, FREE Pad Cartridge replacements, and more.","EA",1,{"v":667.06,"d":"$667.06"},{"v":0.15000149911552177,"d":"15%"},{"v":567,"d":"$567.00"}]
["SAS04","Four years of access to Avive's REALConnect platform. Includes daily AED monitoring and notifications, 911 integration, Incident Data Access, Reporting, FREE Pad Cartridge replacements, and more. 4-year non-cancelable service, billed annually. For the sake of clarity, the purchase of multiple years of REALConnect is a non-cancellable service where the customer will be invoiced the annual sales price per device plus applicable tax annually for the term specified.","Annually",1,{"v":210.59,"d":"$210.59"},{"v":0.1500071228453393,"d":"15%"},{"v":179,"d":"$179.00"}]
["SAS04P","Four years of access to Avive's REALConnect platform. Includes daily AED monitoring and notifications, 911 integration, Incident Data Access, Reporting, FREE Pad Cartridge replacements, and more.","EA",1,{"v":795.29,"d":"$795.29"},{"v":0.14999559908964022,"d":"15%"},{"v":676,"d":"$676.00"}]
["SAS05","Five years of access to Avive's REALConnect platform. Includes daily AED monitoring and notifications, 911 integration, Incident Data Access, Reporting, FREE Pad Cartridge replacements, and more. 5-year non-cancelable service, billed annually. For the sake of clarity, the purchase of multiple years of REALConnect is a non-cancellable service where the customer will be invoiced the annual sales price per device plus applicable tax annually for the term specified.","Annually",1,{"v":210.59,"d":"$210.59"},{"v":0.1500071228453393,"d":"15%"},{"v":179,"d":"$179.00"}]
["SAS05P","Five years of access to Avive's REALConnect platform. Includes daily AED monitoring and notifications, 911 integration, Incident Data Access, Reporting, FREE Pad Cartridge replacements, and more.","EA",1,{"v":994.12,"d":"$994.12"},{"v":0.1500020118295578,"d":"15%"},{"v":845,"d":"$845.00"}]
["SAS06","Six years of access to Avive's REALConnect platform. Includes daily AED monitoring and notifications, 911 integration, Incident Data Access, Reporting, FREE Pad Cartridge replacements, and more. 6-year non-cancelable service, billed annually. For the sake of clarity, the purchase of multiple years of REALConnect is a non-cancellable service where the customer will be invoiced the annual sales price per device plus applicable tax annually for the term specified.","Annually",1,{"v":210.59,"d":"$210.59"},{"v":0.1500071228453393,"d":"15%"},{"v":179,"d":"$179.00"}]
["SAS06P","Six years of access to Avive's REALConnect platform. Includes daily AED monitoring and notifications, 911 integration, Incident Data Access, Reporting, FREE Pad Cartridge replacements, and more.","EA",1,{"v":1192.94,"d":"$1,192.94"},{"v":0.14999916173487354,"d":"15%"},{"v":1014,"d":"$1,014.00"}]
["SAS07","Seven years of access to Avive's REALConnect platform. Includes daily AED monitoring and notifications, 911 integration, Incident Data Access, Reporting, FREE Pad Cartridge replacements, and more. 7-year non-cancelable service, billed annually. For the sake of clarity, the purchase of multiple years of REALConnect is a non-cancellable service where the customer will be invoiced the annual sales price per device plus applicable tax annually for the term specified.","Annually",1,{"v":187.06,"d":"$187.06"},{"v":0.1500053458783278,"d":"15%"},{"v":159,"d":"$159.00"}]
["SAS07P","Seven years of access to Avive's REALConnect platform. Includes daily AED monitoring and notifications, 911 integration, Incident Data Access, Reporting, FREE Pad Cartridge replacements, and more.","EA",1,{"v":1227.06,"d":"$1,227.06"},{"v":0.15000081495607384,"d":"15%"},{"v":1043,"d":"$1,043.00"}]
["CON07","Geospacial and analytical assessment of historical Sudden Cardiac Arrest trends within a particular community. Leverages clinical and response data provided by the customer to demonstrate the overall state of SCA response & survival. Provides a clear set of reccomendations to support the broad improvment of a community's SCA system of care. ","EA",1,{"v":20000,"d":"$20,000.00"},{"v":0.25,"d":"25%"},{"v":15000,"d":"$15,000.00"}]
["CON08","Implementation and managment of the 4 Minute Community Program. Includes access to Avive's Intelligent Response platform, Education Platform for CARE Team members & 911, ongoing managment of local 4MC leadership teams, data reporting, CARE Team recruitment, and program marketing. 5 year contract billed annually.","EA",1,{"v":75000,"d":"$75,000.00"},{"v":0.15333333333333332,"d":"15%"},{"v":63500,"d":"$63,500.00"}]
["PAD02","Access to Avive's Intelligent Response Platform and education platform for 911. 5 year contract billed annually.","EA",1,{"v":30000,"d":"$30,000.00"},{"v":0.15,"d":"15%"},{"v":25500,"d":"$25,500.00"}]
["WGL01","Prior to shipment, Avive will initialize all Avive Connect AEDs, configure core device settings to customer preferences, and configure online REALConnect platform for a fully-prepared customer shipment.","Per AED",1,"$58.82/AED",{"$f":"(58.82-50)/58.82","v":{"v":0.1499489969398164,"d":"15%"}},"$50.00/AED"]
["WGL02","One on-site customer deployment to initialize Avive Connect AEDs, configure device settings, assemble equipment, and configure online REALConnect platform. Does not include cabinets or other accessories. Minimum service amount of $7,500 or 50 Avive AEDs.","Per AED",1,"$176.47/AED                                       $8,823.53 Minimum",{"$f":"(176.47-150)/176.47","v":{"v":0.14999716665722218,"d":"15%"}},"$150.00/AED                    $7,500.00 Minimum"]
["AED05L","Avive LIFESaver Plan. One Avive AED with Avive Connect Installed. Includes one single-use Avive AED Pad Cartridge, one medical-grade USB Power Adapter, one USB Charging Cable, and full access to Avive's REALConnect Services. 5-year non-cancelable service, billed annually. For the sake of clarity, the LIFESaver Plan is a non-cancellable service with a 5-Year Term where the customer will be invoiced the annual sales price per device plus applicable tax annually. At the end of the 5-Year term, the service may be renewed, the equipment may be returned, or the equipment may be purchased at a discounted rate.","Annually",1,{"v":635.28,"d":"$635.28"},{"$f":"(E46-G46)/E46","v":{"v":0.1499968517818914,"d":"15%"}},{"v":539.99,"d":"$539.99"}]
["Non-Cataloged Items","For products and services that become available to purchase prior to being formally added to this master agreement, Avive will offer a flat 15% discount off of the MSRP for such non-cataloged items. ","EA",1,null,{"v":0.15,"d":"15%"}]
["AED Trade-in Credit","Trade-in credit is applied against the cost of a new AED purchase. Trade-in Credits offered on a one-to-one basis (one trade-in credit offered per device traded in for every one new Avive Connect AED purchased). Credits are based on the type of AED traded in and market rates, but typically range from $100-$300 per AED. Additional trade-in credits may apply on a case-by-case basis so long as they are agreed to in writing between the Parties. AED units with an end-of-life notification are not eligible for trade-in unless otherwise agreed to in writing between the parties. End-of-life AEDs include but aren’t limited to: Cardiac Science PowerHeart (model 92XXX), Cardiac Science FirstSave (Model 91XXX), Philips ForeRunner, Philips FR-2, Physio Control LifePak 500, Welch Allyn AED 10, Welch Allyn AED 20, HeartSine Samaritan 300. All trade-in credits will be provided on the front end of the transaction under the conditions outlined below:\n\nAvive will provide an automatic invoice for trade-in credit amount, if traded-in units are not received within sixty (60) days from the customer.\n\nUnits must be in working condition, pass a manufacturer self-test, and not be physically damaged (including stickers or permanent marker writing) or have any major cosmetic issues.\nUnits must be devices that were sold in the United States, not abroad.\nUnits must not be deemed end-of-life, discontinued, or recalled by the current manufacturer.\nUnits must be received within sixty (60) days from customers receiving a new fleet of Avive AEDs, unless otherwise specified by Avive.\nAccurate manufacturer and model must be clearly represented on the Order.\nCustomer is responsible for all shipping to the Avive Facility, located at:\nAvive Solutions Inc.\nATTN: AED Trade-Ins\n185 Valley Drive\nBrisbane, CA 94005",{"$nulls":4},"Approx. $25.00-$300.00 depending on value of trade-in offered"]
{"$rows_empty":14}
["REALConnect Services included in first year of purchase for item AED01, AEDU01 or any package containing an AED and during term of LIFESaver Plan purchase (item AED05L)","REALConnect Services are an online portal used to manage and oversee maintenance aspects of the Avive Connect AED. The Avive Connect AED can share data wirelessly by WiFi, cellular, Bluetooth, and GPS. Data includes health and status information like the location and readinesss status of all AEDs. Notifications can be sent for AED use, temperature alerts, and similar conditions to help AED owners ensure their program is functioning properly. \n\nREALConnect Services include up to one electrode pad replacement per AED per year due to expiration or AED use for each AED unit on active, uninterrupted services.  \n\nREALConnect Services are included in the first year of purhcase (for item AED01). After the first year, owners can optionally renew REALConnect Services. and during active, ongoing subscription to LIFESaver Subscriptions (AED01L)."]
{"$rows_empty":7}
["AED uses rechargeable batteries so there is NO on-going cost of replacement batteries"]
["Dual Language at NO extra cost"]
["Every device is equipted with Child Mode at no extra cost"]
["Universal Pads: AED uses the same set of pads for adults and pediatric patients, so only one set of pads is necessary for adults and while in child mode"]